bitfinex/quotes_ETHUSD_20250220
["timestamp","ask_amount","ask_price","bid_price","bid_amount"]
[1740077034569,3.64575,2743.0,2742.5,3.64623]
[1740077034570,4.42064,2742.9,2742.5,3.64623]
[1740077034774,3.64597,2742.8,2742.5,0.55]
[1740077035074,0.7748,2742.9,2742.3,0.7557]
[1740077035277,3.64578,2742.9,2742.4,3.64637]
[1740077035458,3.64578,2742.9,2742.5,3.0]
[1740077035855,3.64602,2742.8,2742.3,4.40224]
[1740077036051,3.64602,2742.8,2742.4,0.55]
[1740077036276,3.6463,2742.5,2742.1,0.782]
[1740077036874,4.47077,2742.6,2742.1,4.42883]
[1740077037282,3.64617,2742.6,2742.1,4.42875]
[1740077037573,7.29243,2742.6,2742.1,7.84989038]
[1740077037778,3.64617,2742.6,2742.1,7.84989038]
[1740077038284,0.8096,2742.8,2742.2,0.55]
[1740077038443,3.64575,2743.0,2742.2,4.19667]
[1740077038649,3.64586,2742.9,2742.4,3.6464]
[1740077039051,3.64586,2742.9,2742.3,3.64657]
[1740077039250,3.64586,2742.9,2742.3,3.6465]
[1740077039476,3.64586,2742.9,2742.4,3.64643]
[1740077039981,0.7837,2742.8,2742.4,3.64643]
[1740077040348,4.42961,2742.8,2742.4,3.64643]
[1740077041073,3.64606,2742.7,2742.2,4.1967]
[1740077042094,3.64606,2742.7,2742.2,4.19662]
[1740077042581,4.463543,2742.7,2742.1,0.782]
[1740077042789,3.64631,2742.5,2742.0,6.64687]
[1740077043110,4.46315,2742.4,2742.0,6.64687]
[1740077043613,0.8167,2742.4,2742.0,6.64687]
[1740077043965,3.74499,2742.9,2742.0,3.0]
[1740077043966,3.74508,2742.9,2742.0,3.0]
[1740077044153,1.172108,2742.8,2742.2,0.8049]
[1740077044356,4.44351,2742.8,2742.3,3.64647]
[1740077045586,3.6461,2742.7,2742.2,0.8049]
[1740077045791,3.6461,2742.7,2742.2,4.45159]
[1740077046181,7.29227,2742.7,2742.2,4.45159]
[1740077046488,3.6461,2742.7,2742.2,4.45159]
[1740077046990,0.0992,2742.9,2742.4,3.42114038]
[1740077047192,0.0992,2742.9,2742.6,4.41077]
[1740077047361,0.0992,2742.9,2742.6,4.41085]
[1740077047761,3.74498,2742.9,2742.6,0.7647]
[1740077048162,0.0992,2742.9,2742.6,4.41084]
[1740077048766,0.0992,2742.9,2742.6,5.91366804]
[1740077048972,0.0992,2742.9,2742.6,2.26752804]
[1740077049575,0.0992,2742.9,2742.6,0.7647]
[1740077053289,0.0992,2742.9,2742.6,0.55]
[1740077053595,0.8197,2742.8,2742.2,3.0]
[1740077053808,3.64614,2742.7,2742.2,6.64664]
[1740077054105,3.64652,2742.4,2742.0,0.7894]
[1740077054312,0.8197,2742.4,2742.0,3.6469]
[1740077054597,0.8197,2742.4,2742.1,3.0]
[1740077055610,4.46617,2742.4,2742.0,0.55]
[1740077055902,3.64658,2742.3,2742.0,3.55]
[1740077056404,0.8197,2742.4,2742.0,7.19689]
[1740077056798,0.8197,2742.4,2742.0,7.19687]
[1740077057006,0.8197,2742.4,2742.1,3.64671]
[1740077057207,4.42583,2742.7,2742.2,0.55]
[1740077057375,4.42583,2742.7,2742.2,4.19663]
[1740077057910,3.64618,2742.6,2742.2,0.55]
[1740077058410,3.64618,2742.6,2742.2,4.19668]
[1740077059409,3.64618,2742.6,2742.2,0.55]
[1740077060606,0.7797,2742.7,2742.3,4.43336]
[1740077060607,4.42577,2742.7,2742.3,4.43336]
[1740077060812,0.7797,2742.7,2742.3,4.43336]
[1740077061512,4.42574,2742.7,2742.3,4.43336]
[1740077061678,0.7797,2742.7,2742.3,4.43344]
[1740077062208,4.42576,2742.7,2742.2,4.19662]
[1740077063215,4.42576,2742.7,2742.2,7.84326]
[1740077063382,4.42576,2742.7,2742.2,4.19662]
[1740077064525,4.42576,2742.7,2742.2,0.55]
[1740077064727,4.42576,2742.7,2742.2,4.19664]
[1740077065822,0.7999,2742.3,2741.9,4.41578]
[1740077066022,0.7999,2742.3,2741.9,3.64708]
[1740077066416,0.7999,2742.3,2742.0,0.55]
[1740077068627,0.7999,2742.3,2741.7,5.27]
[1740077068854,0.7999,2742.3,2741.2,3.64792]
[1740077068855,3.64724,2741.8,2741.2,3.64792]
[1740077069020,3.64724,2741.8,2741.3,3.64783]
[1740077069021,0.8138,2741.7,2741.3,3.64783]
[1740077069218,0.8138,2741.7,2741.1,7.29616]
[1740077069450,4.46119,2741.7,2741.1,7.29616]
[1740077069657,4.46119,2741.7,2741.1,3.64806]
[1740077070032,3.6475,2741.6,2741.1,3.64806]
[1740077070851,4.46117,2741.7,2741.1,3.64806]
[1740077071057,4.46117,2741.7,2741.1,4.19806]
[1740077071262,3.64757,2741.6,2741.0,3.6483]
[1740077071760,3.64757,2741.6,2741.0,3.64823]
[1740077072061,3.64757,2741.6,2741.0,7.29645]
[1740077072235,3.64757,2741.6,2741.0,3.64822]
[1740077072430,0.8138,2741.7,2741.0,3.64822]
[1740077072636,0.8138,2741.7,2741.2,3.64795]
[1740077073437,4.46122,2741.7,2741.2,3.64795]
[1740077073759,4.46122,2741.7,2741.1,1.3803]
[1740077074060,4.46122,2741.7,2741.1,5.02842]
[1740077074566,0.8138,2741.7,2741.2,3.64801]
[1740077075231,4.46117,2741.7,2741.1,5.02846]
[1740077075433,4.46117,2741.7,2741.2,3.64802]
[1740077076374,4.46117,2741.7,2741.1,5.02846]
[1740077076738,4.46117,2741.7,2741.1,4.19816]
[1740077077466,0.8138,2741.7,2741.2,3.64803]
[1740077077835,4.46118,2741.7,2741.2,3.64803]
[1740077078269,8.10865,2741.7,2741.2,3.64803]
[1740077078473,0.8138,2741.7,2741.3,3.6479]
[1740077078635,0.8138,2741.7,2741.2,3.64803]
[1740077078830,0.8138,2741.7,2741.2,0.4862852]
[1740077079045,0.8138,2741.7,2741.4,4.19777]
[1740077079275,0.8024,2741.9,2741.5,3.64762]
[1740077079486,0.8024,2741.9,2741.4,0.55]
[1740077079638,0.8024,2742.4,2741.8,0.55]
[1740077079838,0.8024,2742.4,2741.8,3.55]
[1740077080032,0.8024,2742.7,2742.2,0.55]
[1740077080292,0.8024,2742.7,2742.1,0.55]
[1740077080496,0.8024,2742.7,2742.4,3.64641]
[1740077080694,0.8024,2742.7,2742.3,3.64655]
[1740077080843,5.26789,2742.7,2742.2,3.6467]
[1740077082538,0.932,2742.9,2742.4,3.42114038]
[1740077082743,0.0992,2742.9,2742.7,0.55]
[1740077083341,0.0992,2742.9,2742.6,0.55]
[1740077083673,0.0992,2742.9,2742.8,4.1959]
[1740077083892,0.0992,2742.9,2742.8,8.84919904]
[1740077087572,0.0992,2742.9,2742.8,9.12392159]
[1740077089122,0.0992,2742.9,2742.8,12.54506197]
[1740077089310,0.0992,2742.9,2742.8,13.34086197]
[1740077089893,0.8281,2743.9,2743.6,3.64475]
[1740077090154,0.8281,2743.9,2743.7,3.64468]
[1740077090296,0.8281,2744.1,2743.7,3.64462]
[1740077090628,0.8281,2744.1,2743.8,3.64457]
[1740077090824,0.8281,2744.1,2743.7,3.64466]
[1740077091619,0.8281,2744.1,2743.8,3.64449]
[1740077091806,0.8281,2744.1,2743.8,3.64458]
[1740077092007,0.8281,2744.1,2743.7,3.64466]
[1740077092344,0.8281,2744.1,2743.7,3.64462]
[1740077092626,0.8281,2744.1,2743.8,0.55]
[1740077092830,0.8281,2744.1,2743.8,4.19451]
[1740077095037,0.8091,2744.4,2743.8,4.19451]
[1740077095357,3.64391,2744.3,2743.8,4.19451]
[1740077095753,4.45299,2744.4,2743.8,3.55]
[1740077095754,0.8091,2744.4,2743.8,3.55]
[1740077095897,0.8091,2744.4,2744.1,3.64406]
[1740077097253,0.8091,2744.4,2744.2,3.64402]
[1740077097454,0.8091,2744.4,2744.1,3.64406]
[1740077098247,0.8091,2744.4,2744.2,3.644]
[1740077098651,0.8091,2744.4,2744.1,3.64409]
[1740077099865,0.8091,2744.4,2744.1,3.64418]
[1740077101450,0.8091,2744.4,2743.9,0.74134224]
[1740077101765,3.644,2744.3,2743.8,6.6445]
[1740077101946,3.644,2744.3,2743.8,10.28897]
[1740077102255,3.644,2744.3,2743.9,3.64443]
[1740077102460,0.8091,2744.4,2743.9,0.55]
[1740077102659,0.8091,2744.4,2744.2,3.64402]
[1740077103163,0.8091,2744.4,2744.1,4.19417]
[1740077104151,0.8091,2744.4,2744.0,4.19429]
[1740077104562,4.45291,2744.4,2743.8,3.0]
[1740077104762,0.8091,2744.4,2744.2,3.64403]
[1740077104965,4.43613,2744.9,2744.4,3.64376]
[1740077105169,3.64335,2744.8,2744.3,3.64386]
[1740077105761,3.6435,2744.7,2744.2,3.64403]
[1740077106062,3.64335,2744.8,2744.0,1.3648]
[1740077106291,3.64335,2744.8,2744.3,3.64388]
[1740077106560,7.28665,2744.8,2744.3,3.64388]
[1740077106770,3.64345,2744.7,2744.2,4.19404]
[1740077107367,3.64352,2744.6,2744.2,4.19404]
[1740077107569,0.7915,2744.5,2744.2,0.55]
[1740077107961,0.7915,2744.5,2744.2,4.19404]
[1740077108156,0.7915,2744.5,2744.2,0.55]
[1740077108467,0.7915,2744.5,2744.2,4.613435]
[1740077108775,5.36,2745.1,2744.2,4.613435]
[1740077108776,0.7762,2744.7,2744.3,3.64386]
[1740077108935,4.41961,2744.7,2744.2,0.55]
[1740077109136,3.64358,2744.6,2744.2,0.55]
[1740077109336,4.41961,2744.7,2744.2,4.19404]
[1740077109639,0.7762,2744.7,2744.4,3.64372]
[1740077109841,0.7808,2745.0,2744.6,3.64351]
[1740077110052,0.7808,2745.0,2744.6,7.28686]
[1740077110254,0.7808,2745.0,2744.6,3.64343]
[1740077110770,4.42384,2745.0,2744.5,4.19364]
[1740077110958,4.42384,2745.0,2744.4,4.427426]
[1740077110959,5.230476,2745.0,2744.3,3.64383]
[1740077111161,3.64311,2744.9,2744.2,3.64393]
[1740077111359,3.64311,2744.9,2744.3,3.64391]
[1740077111783,4.42381,2745.0,2744.3,3.64391]
[1740077111784,3.64332,2744.8,2744.3,0.55]
[1740077111962,4.47284,2744.7,2744.3,0.55]
[1740077112374,0.8294,2744.7,2744.3,4.19387]
[1740077113195,3.64352,2744.6,2744.2,0.27731864]
[1740077113484,3.64352,2744.6,2744.1,8.9141]
[1740077114862,3.64352,2744.6,2744.1,3.6441]
[1740077117693,3.64352,2744.6,2744.1,4.19408]
[1740077118187,7.28715,2744.6,2744.1,4.19408]
[1740077118395,3.64352,2744.6,2744.1,4.19408]
[1740077119091,3.64352,2744.6,2744.2,3.64403]
[1740077119473,3.64352,2744.6,2744.1,4.19416]
[1740077120002,3.64352,2744.6,2744.2,3.64403]
[1740077121095,4.47285,2744.7,2744.2,3.64391]
[1740077121591,0.8294,2744.7,2744.3,3.6439]
[1740077121796,0.7947,2745.2,2744.5,0.55]
[1740077122093,0.7947,2745.2,2745.0,3.64291]
[1740077122469,0.7947,2745.2,2744.9,0.55]
[1740077122874,4.43753,2745.2,2744.6,3.0]
[1740077123065,3.64288,2745.1,2744.6,6.64351]
[1740077123401,4.43753,2745.2,2744.6,6.64351]
[1740077123402,8.08036,2745.2,2744.6,6.64351]
[1740077123577,4.43753,2745.2,2744.6,6.64351]
[1740077123777,4.43753,2745.2,2744.7,3.64337]
[1740077124176,8.08036,2745.2,2744.7,3.64337]
[1740077124378,4.43752,2745.2,2744.6,3.27889971]
[1740077124573,3.64305,2745.0,2744.6,3.27889971]
[1740077124899,3.64305,2745.0,2744.6,6.92239971]
[1740077125203,3.64285,2745.1,2744.6,6.92239971]
[1740077125776,4.43752,2745.2,2744.7,3.64335]
[1740077126408,4.43752,2745.2,2744.7,3.64331]
[1740077126979,0.7947,2745.2,2744.8,0.55]
[1740077127183,0.8294,2745.4,2745.0,3.64298]
[1740077127501,4.47186,2745.4,2744.9,7.28607]
[1740077127708,4.47186,2745.4,2744.9,3.64303]
[1740077128397,4.47186,2745.4,2744.9,7.28607]
[1740077128605,4.47186,2745.4,2744.9,3.64303]
[1740077129416,0.8294,2745.4,2745.0,3.64294]
[1740077129703,4.47192,2745.4,2744.9,4.5601997]
[1740077130216,0.8294,2745.4,2745.0,3.64294]
[1740077130437,0.8294,2745.4,2745.0,0.55]
[1740077130567,0.7788,2745.8,2745.2,3.64263]
[1740077130910,3.64223,2745.6,2745.1,3.64285]
[1740077131201,3.64213,2745.7,2745.2,3.64265]
[1740077131375,3.64226,2745.6,2745.1,4.86026801]
[1740077132503,3.64213,2745.7,2745.1,4.86026801]
[1740077132707,3.64233,2745.5,2745.1,4.86026801]
[1740077133296,9.0018,2745.9,2745.0,0.55]
[1740077133608,0.7519,2745.4,2745.0,4.19297]
[1740077133994,3.64259,2745.3,2744.8,7.47192]
[1740077134190,7.28528,2745.3,2744.8,6.64312]
[1740077134397,0.8013,2745.2,2744.9,0.55]
[1740077135001,0.8013,2745.2,2744.9,4.19305]
[1740077135173,0.8013,2745.2,2744.9,5.3823247]
[1740077137605,4.43781,2745.5,2744.9,9.7828547]
[1740077137809,4.43781,2745.5,2745.0,3.64291]
[1740077138012,3.64253,2745.4,2744.9,6.1398047]
[1740077138398,3.64253,2745.4,2744.9,9.7828447]
[1740077138601,3.64253,2745.4,2745.0,3.64296]
[1740077138830,0.7954,2745.5,2745.1,3.0]
[1740077138998,0.7954,2745.5,2745.2,3.64261]
[1740077140411,4.45671,2745.8,2745.2,3.64261]
[1740077140608,0.8147,2745.8,2745.2,0.55]
[1740077140909,0.8147,2745.8,2745.3,3.64252]
[1740077141110,0.8147,2745.8,2745.4,3.64239]
[1740077141300,0.8147,2745.8,2745.4,3.64233]
[1740077141610,0.8147,2745.8,2745.5,7.83458]
[1740077141910,0.8147,2745.8,2745.5,4.19226]
[1740077142120,3.64121,2746.4,2745.5,0.55]
[1740077142416,3.64121,2746.4,2745.9,3.64168]
[1740077142709,4.46472,2746.5,2746.0,3.6416]
[1740077143091,0.8237,2746.5,2746.0,3.6416]
[1740077143404,0.8237,2746.5,2746.0,3.64158]
[1740077143732,3.64117,2746.4,2746.0,0.805862]
[1740077143877,3.64117,2746.4,2745.9,0.55]
[1740077144278,3.64117,2746.4,2745.9,4.19179]
[1740077145182,4.4647,2746.5,2746.0,3.64159]
[1740077145383,8.1058,2746.5,2746.0,3.64159]
[1740077145594,3.64114,2746.4,2746.0,3.64159]
[1740077145797,4.4647,2746.5,2746.0,0.860858]
[1740077145993,4.4647,2746.5,2745.9,0.55]
[1740077145994,3.64126,2746.3,2745.9,0.55]
[1740077146205,5.36,2746.7,2745.7,6.64205]
[1740077146206,0.7979,2746.1,2745.7,6.64205]
[1740077146510,4.43943,2746.1,2745.8,0.55]
[1740077147580,0.7979,2746.1,2745.8,0.55]
[1740077148198,0.7979,2746.1,2745.8,4.19184]
[1740077148399,0.7979,2746.1,2745.9,1.083389]
[1740077149182,3.64116,2746.4,2745.9,1.083389]
[1740077149386,4.46766,2746.3,2745.9,1.083389]
[1740077151023,3.64137,2746.3,2745.9,1.083389]
[1740077151220,3.64114,2746.4,2746.0,0.55]
[1740077151425,3.64114,2746.4,2746.1,0.5275079]
[1740077151607,3.64102,2746.5,2746.1,0.5275079]
[1740077151817,4.43263,2746.6,2746.1,4.1689679]
[1740077152139,3.64101,2746.5,2746.1,4.1690079]
[1740077152484,3.64101,2746.5,2746.1,0.5275079]
[1740077152924,3.64114,2746.4,2746.2,0.49722479]
[1740077153121,3.64101,2746.5,2746.2,0.49722479]
[1740077153505,7.28213,2746.5,2746.2,0.49722479]
[1740077153838,3.64101,2746.5,2746.2,0.49722479]
[1740077154394,3.64113,2746.4,2746.2,0.49722479]
[1740077154721,0.7917,2746.6,2746.2,0.49722479]
[1740077155019,3.641,2746.5,2746.1,0.55]
[1740077155236,7.2821,2746.5,2746.1,0.55]
[1740077155742,3.641,2746.5,2746.1,0.55]
[1740077156139,3.64114,2746.4,2746.1,0.55]
[1740077156440,3.64114,2746.4,2746.0,4.44465]
[1740077156441,3.64132,2746.3,2745.9,3.0]
[1740077156640,3.64132,2746.3,2746.0,0.42102692]
[1740077156823,3.64132,2746.3,2746.0,0.97102692]
[1740077157004,3.64114,2746.4,2746.0,0.97102692]
[1740077157504,3.64114,2746.4,2746.0,4.61266692]
[1740077157736,3.64114,2746.4,2746.0,0.97102692]
[1740077157909,3.64138,2746.3,2746.1,0.76127569]
[1740077158209,3.64139,2746.2,2746.1,0.76127569]
[1740077158409,3.64127,2746.3,2746.0,0.55]
[1740077158603,3.64143,2746.2,2746.0,0.55]
[1740077158803,4.3998,2746.1,2745.6,4.892341]
[1740077159010,4.3998,2746.1,2745.2,4.39573]
[1740077159011,0.7582,2746.1,2745.2,4.39573]
[1740077159320,3.64209,2745.7,2745.2,8.03838]
[1740077159520,3.64209,2745.7,2745.3,3.0]
[1740077159710,3.64183,2745.9,2745.3,3.0]
[1740077160041,3.64183,2745.9,2745.4,4.932023]
[1740077160208,3.64183,2745.9,2745.5,3.64232]
[1740077161153,3.64215,2745.7,2745.2,1.02058501]
[1740077161308,0.8104,2745.6,2745.2,0.7531]
[1740077161663,4.45266,2745.6,2745.2,3.7531]
[1740077162212,0.8104,2745.6,2745.2,3.7531]
[1740077162544,3.64232,2745.5,2745.0,0.7695]
[1740077162749,3.64232,2745.5,2745.0,4.853735]
[1740077163108,4.45269,2745.6,2745.1,3.64285]
[1740077163360,3.64232,2745.5,2745.0,7.853735]
[1740077164461,0.8104,2745.6,2745.0,4.210755]
[1740077164612,3.64252,2745.4,2745.0,4.210755]
[1740077165062,8.09497,2745.6,2745.0,7.853665]
[1740077165266,3.64236,2745.5,2745.1,1.17709275]
[1740077165821,4.45268,2745.6,2745.1,1.17709275]
[1740077166020,3.64246,2745.4,2745.0,7.853665]
[1740077166258,3.64246,2745.4,2745.0,1.210755]
[1740077167362,3.64265,2745.3,2745.0,1.210755]
[1740077167588,3.64265,2745.3,2744.9,0.55]
[1740077167777,3.64246,2745.4,2744.9,4.19305]
[1740077167938,0.8104,2745.6,2744.8,0.7684]
[1740077168280,3.64318,2744.9,2744.5,14.2214]
[1740077168418,3.64318,2744.9,2744.5,0.7684]
[1740077169035,3.64318,2744.9,2744.4,3.6437]
[1740077169036,3.64318,2744.9,2744.4,0.55]
[1740077169237,3.64341,2744.7,2744.3,6.64382]
[1740077169461,3.64341,2744.7,2744.3,7.7762929]
[1740077169639,4.39836,2744.8,2744.3,7.7762929]
[1740077170386,3.64344,2744.7,2744.2,1.03681897]
[1740077170685,3.64359,2744.6,2744.1,3.64409]
[1740077170891,3.64359,2744.6,2744.2,0.55]
[1740077171449,3.64359,2744.6,2744.2,3.55]
[1740077172981,0.7551,2744.8,2744.2,3.0]
[1740077173188,3.64393,2744.3,2743.8,9.66937]
[1740077173489,3.64407,2744.2,2743.9,1.331404]
[1740077173695,3.64425,2744.1,2743.6,0.7796]
[1740077173993,0.8217,2744.1,2743.6,3.0]
[1740077174150,3.64452,2743.9,2743.4,1.00752188]
[1740077174339,3.64452,2743.9,2743.4,0.73825478]
[1740077174340,3.6447,2743.8,2743.4,0.73825478]
[1740077174540,3.64458,2743.8,2743.4,0.73825478]
[1740077174805,3.64458,2743.8,2743.4,3.73825478]
[1740077175084,0.8217,2744.1,2743.4,5.92717987]
[1740077175286,4.46592,2744.1,2743.6,3.64481]
[1740077175443,4.46589,2744.1,2743.5,0.55]
[1740077175638,0.8217,2744.1,2743.7,3.64462]
[1740077175839,0.8023,2744.3,2743.8,0.55]
[1740077176034,5.3675,2744.8,2744.3,3.64384]
[1740077176035,5.36,2744.8,2744.3,3.64384]
[1740077176240,6.1623,2744.8,2744.4,3.64366]
[1740077176561,6.1623,2744.8,2744.3,0.364384]
[1740077176562,4.44555,2744.8,2744.3,0.364384]
[1740077176969,3.64346,2744.7,2744.3,0.55]
[1740077177173,0.8023,2744.8,2744.1,3.0]
[1740077177473,0.7961,2744.4,2744.1,3.0]
[1740077178038,4.43971,2744.6,2744.1,6.64416]
[1740077178275,0.7961,2744.6,2744.2,3.64404]
[1740077178462,3.64301,2745.0,2744.3,0.55]
[1740077178779,3.64301,2745.0,2744.4,4.46147]
[1740077178780,4.43922,2744.9,2744.4,4.46147]
[1740077179077,3.64334,2744.8,2744.4,0.8177]
[1740077179275,3.64334,2744.8,2744.3,0.55]
[1740077179449,3.64375,2744.5,2744.1,3.0]
[1740077179982,4.43985,2744.5,2743.9,0.8177]
[1740077180165,3.64415,2744.2,2743.7,8.91468]
[1740077180361,3.6442,2744.1,2743.6,4.46254]
[1740077181159,3.64414,2744.2,2743.7,4.19471]
[1740077181476,0.7961,2744.5,2744.1,3.64407]
[1740077181639,9.81625,2744.8,2744.1,0.8189]
[1740077181843,3.64338,2744.7,2744.2,4.19396]
[1740077182149,3.64338,2744.7,2744.2,0.55]
[1740077182477,3.64352,2744.6,2744.2,0.55]
[1740077183884,6.1729,2744.8,2744.2,0.55]
[1740077184077,3.64352,2744.6,2744.2,0.55]
[1740077184580,3.64338,2744.7,2744.2,4.19401]
[1740077184782,9.81616,2744.8,2744.3,3.64388]
[1740077184962,0.8129,2744.8,2744.3,3.64388]
[1740077185172,3.64304,2745.0,2744.5,3.64365]
[1740077185371,0.7707,2745.0,2744.4,0.419388]
[1740077185571,0.7707,2745.0,2744.6,3.64343]
[1740077185770,6.1552,2745.2,2744.6,4.46295]
[1740077185973,3.64292,2745.1,2744.6,4.46295]
[1740077186367,6.1552,2745.2,2744.6,1.7271028]
[1740077186685,0.7952,2745.4,2745.1,3.64285]
[1740077186887,4.44375,2745.7,2745.0,3.64296]
[1740077187089,3.64234,2745.5,2745.0,3.64296]
[1740077187289,3.64234,2745.5,2745.0,0.55]
[1740077187488,3.64255,2745.4,2745.0,0.55]
[1740077187694,3.64258,2745.3,2745.0,0.55]
[1740077187860,3.64258,2745.3,2744.9,0.55]
[1740077188058,7.28477,2745.5,2744.9,4.1931]
[1740077188263,3.64234,2745.5,2745.0,3.64298]
[1740077188562,4.44384,2745.7,2745.1,3.64278]
[1740077188798,3.64239,2745.5,2745.0,3.64298]
[1740077189349,3.64246,2745.4,2745.0,3.64298]
[1740077189775,3.64239,2745.5,2744.9,1.333645]
[1740077189978,3.64263,2745.3,2744.9,1.333645]
[1740077190454,3.64233,2745.5,2744.6,3.0]
[1740077190455,0.7936,2745.5,2744.6,3.0]
[1740077190895,3.64297,2745.1,2744.6,6.64348]
[1740077191460,0.7536,2745.0,2744.6,6.64348]
[1740077191660,0.7536,2745.0,2744.7,3.64337]
[1740077192089,0.7536,2745.0,2744.5,6.64363]
[1740077192292,4.3966,2745.0,2744.6,3.55]
[1740077192491,1.19326,2745.0,2744.2,8.91397]
[1740077192693,3.64354,2744.6,2744.1,0.8323]
[1740077192898,3.64365,2744.5,2744.0,7.56816311]
[1740077193061,3.64365,2744.5,2744.0,3.64418]
[1740077193257,3.64393,2744.3,2743.9,0.8323]
[1740077193572,4.41641,2744.4,2743.9,7.47674]
[1740077193962,3.64356,2744.6,2743.9,4.47674]
[1740077194162,8.0595,2744.7,2744.1,3.64414]
[1740077194490,3.64365,2744.5,2744.0,7.19431]
[1740077194695,4.41601,2744.7,2744.0,3.55]
[1740077194884,4.41601,2744.7,2744.1,3.64416]
[1740077195082,4.41601,2744.7,2744.2,3.64398]
[1740077195799,5.36,2744.8,2744.4,3.64375]
[1740077195965,3.6434,2744.7,2744.2,3.64399]
[1740077196161,5.36,2744.8,2744.2,3.64399]
[1740077196162,5.36,2744.8,2744.3,0.55]
[1740077196493,9.00326,2744.8,2744.4,4.39587]
[1740077198081,3.64359,2744.6,2744.1,4.47237]
[1740077198288,3.64359,2744.6,2744.1,3.8282]
[1740077198464,3.64373,2744.5,2744.1,3.8282]
[1740077199374,3.64373,2744.5,2744.1,7.47236]
[1740077199574,3.64373,2744.5,2744.1,3.8282]
[1740077199876,3.64373,2744.5,2744.1,7.47236]
[1740077200109,3.64373,2744.5,2744.1,3.8282]
[1740077201187,3.64373,2744.5,2744.0,8.91429]
[1740077201188,3.64393,2744.3,2744.0,5.27]
[1740077201576,3.64412,2744.2,2743.7,3.64462]
[1740077201899,3.64393,2744.3,2743.8,3.64454]
[1740077202106,3.64411,2744.2,2743.9,3.0]
[1740077202305,3.64411,2744.2,2743.6,0.7673]
[1740077202306,3.64425,2744.1,2743.6,0.7673]
[1740077202501,3.64438,2744.0,2743.6,0.7673]
[1740077202914,3.64438,2744.0,2743.6,3.7673]
[1740077203209,3.64462,2743.8,2743.5,0.55]
[1740077203424,4.40487,2743.9,2743.5,0.55]
[1740077203711,4.40487,2743.9,2743.5,3.55]
[1740077203867,4.40485,2743.9,2743.5,7.19493]
[1740077205105,4.40485,2743.9,2743.4,3.55]
[1740077205305,4.40485,2743.9,2743.4,7.19508]
[1740077205497,4.40485,2743.9,2743.4,3.55]
[1740077205680,4.40485,2743.9,2743.5,3.64496]
[1740077206309,4.40485,2743.9,2743.4,7.19509]
[1740077206810,0.7604,2743.9,2743.4,3.55]
[1740077207011,0.7604,2743.9,2743.5,3.64495]
[1740077207517,4.40486,2743.9,2743.4,7.1951]
[1740077207672,4.40486,2743.9,2743.4,3.55]
[1740077207877,0.7604,2743.9,2743.4,3.55]
[1740077208586,4.40484,2743.9,2743.5,3.64497]
[1740077209205,0.7604,2743.9,2743.7,3.64469]
[1740077209399,3.64426,2744.1,2743.5,3.64484]
[1740077209712,3.64434,2744.0,2743.5,3.64484]
[1740077209912,3.64448,2743.9,2743.4,7.19507]
[1740077210813,3.64434,2744.0,2743.4,7.19501]
[1740077211113,3.64447,2743.9,2743.4,8.35894429]
[1740077211306,3.64447,2743.9,2743.4,7.19501]
[1740077211499,3.64434,2744.0,2743.5,3.64492]
[1740077212616,3.64445,2743.9,2743.5,3.64492]
[1740077213108,3.64434,2744.0,2743.5,3.64492]
[1740077213283,0.7578,2744.2,2743.7,4.47371]
[1740077213484,3.6441,2744.2,2743.8,3.64455]
[1740077213691,7.28824,2744.2,2743.7,4.47369]
[1740077213885,3.64419,2744.1,2743.7,4.47369]
[1740077214085,3.64439,2744.0,2743.7,0.829]
[1740077214405,3.64439,2744.0,2743.6,3.0]
[1740077214713,3.64418,2744.1,2743.6,6.64476]
[1740077216510,3.64418,2744.1,2743.6,3.0]
[1740077216683,3.64434,2744.0,2743.6,6.64484]
[1740077217415,3.64434,2744.0,2743.6,3.55]
[1740077218015,3.64418,2744.1,2743.6,4.19476]
[1740077218713,0.8099,2744.4,2743.5,3.8105]
[1740077218714,3.64437,2744.0,2743.5,0.8105]
[1740077218953,3.64453,2743.9,2743.5,3.8105]
[1740077220219,3.64437,2744.0,2743.5,7.45547]
[1740077220523,3.64445,2743.9,2743.5,4.920551]
[1740077220683,3.64445,2743.9,2743.5,3.8105]
[1740077220886,3.64445,2743.9,2743.5,7.45547]
[1740077221522,3.64415,2744.2,2743.5,3.8105]
[1740077221822,3.64432,2744.0,2743.5,7.23164038]
[1740077222123,7.28875,2744.0,2743.5,10.87660038]
[1740077222419,3.64432,2744.0,2743.5,10.87660038]
[1740077222624,7.28871,2744.0,2743.5,10.87660038]
[1740077223031,3.64452,2743.9,2743.5,7.23164038]
[1740077223190,3.644,2744.3,2743.3,0.7983]
[1740077223191,6.1766,2744.2,2743.3,0.7983]
[1740077223390,6.1766,2744.2,2743.1,0.7983]
[1740077223391,0.8166,2743.7,2743.1,0.7983]
[1740077223587,3.64518,2743.4,2742.9,4.44401]
[1740077223822,3.64486,2743.6,2743.0,3.64563]
[1740077224029,4.46133,2743.7,2742.9,0.7983]
[1740077224230,4.46133,2743.7,2743.0,3.64564]
[1740077224231,3.64501,2743.5,2743.0,3.64564]
[1740077224595,3.64511,2743.4,2743.0,3.64556]
[1740077225326,3.64511,2743.4,2743.0,3.0]
[1740077225504,3.64503,2743.5,2743.0,6.64562]